[Event "*** Titled Tuesday Blitz"]
[Site "Chess.com"]
[Date "2020.05.19"]
[Round "8"]
[White "AlexTruskavetsky"]
[Black "AnnaChessLook"]
[Result "1-0"]
[WhiteElo "2450"]
[BlackElo "2229"]
[TimeControl "180+1"]
[EndTime "13:36:06 PDT"]
[Termination "AlexTruskavetsky won by resignation"]

1. d4 {[%clk 0:03:00.9]} 1... Nf6 {[%clk 0:02:57.4]} 2. Bg5 {[%clk 0:03:01.1]}
2... Ne4 {[%clk 0:02:53.1]} 3. Bf4 {[%clk 0:03:00.5]} 3... c5 {[%clk 0:02:46.2]}
4. f3 {[%clk 0:02:59.9]} 4... Qa5+ {[%clk 0:02:43.2]} 5. c3 {[%clk 0:02:59]}
5... Nf6 {[%clk 0:02:30.4]} 6. d5 {[%clk 0:02:59]} 6... Qb6 {[%clk 0:02:28.5]}
7. Qd2 {[%clk 0:02:56.1]} 7... g6 {[%clk 0:02:24.6]} 8. e4 {[%clk 0:02:55.6]}
8... d6 {[%clk 0:02:25]} 9. c4 {[%clk 0:02:48.5]} 9... Bg7 {[%clk 0:02:21.2]}
10. Nc3 {[%clk 0:02:48.7]} 10... O-O {[%clk 0:02:21.4]} 11. Bd3 {[%clk
0:02:45.3]} 11... e6 {[%clk 0:02:21.2]} 12. Nge2 {[%clk 0:02:37.9]} 12... exd5
{[%clk 0:02:20.9]} 13. exd5 {[%clk 0:02:38.8]} 13... Na6 {[%clk 0:02:17.9]} 14.
O-O {[%clk 0:02:36.6]} 14... Nb4 {[%clk 0:02:16.5]} 15. Bb1 {[%clk 0:02:33.8]}
15... Re8 {[%clk 0:02:16.2]} 16. Nb5 {[%clk 0:02:25.4]} 16... Rd8 {[%clk
0:02:11]} 17. a4 {[%clk 0:02:17.3]} 17... a5 {[%clk 0:01:45.2]} 18. Nec3 {[%clk
0:02:13.4]} 18... Ne8 {[%clk 0:01:30.1]} 19. Re1 {[%clk 0:02:10.3]} 19... Bd7
{[%clk 0:01:27.4]} 20. Re2 {[%clk 0:01:53.2]} 20... Bxb5 {[%clk 0:01:27]} 21.
Nxb5 {[%clk 0:01:48.2]} 21... Nc7 {[%clk 0:01:26.8]} 22. Nc3 {[%clk 0:01:47.4]}
22... Re8 {[%clk 0:01:24.3]} 23. Be4 {[%clk 0:01:42.6]} 23... Re7 {[%clk
0:01:18.8]} 24. Rae1 {[%clk 0:01:41]} 24... Rae8 {[%clk 0:01:16.2]} 25. h4
{[%clk 0:01:36.4]} 25... Nba6 {[%clk 0:01:04.6]} 26. h5 {[%clk 0:01:33.5]} 26...
f5 {[%clk 0:00:59.3]} 27. Bd3 {[%clk 0:01:24.2]} 27... Bf6 {[%clk 0:00:49]} 28.
hxg6 {[%clk 0:01:21.9]} 28... hxg6 {[%clk 0:00:48.8]} 29. Rxe7 {[%clk
0:01:12.3]} 29... Rxe7 {[%clk 0:00:47.6]} 30. Rxe7 {[%clk 0:01:12.5]} 30... Bxe7
{[%clk 0:00:47.4]} 31. g4 {[%clk 0:01:12.8]} 31... Nb4 {[%clk 0:00:31.2]} 32.
Bb1 {[%clk 0:01:10.2]} 32... Ne8 {[%clk 0:00:27.8]} 33. gxf5 {[%clk 0:01:09.1]}
33... gxf5 {[%clk 0:00:27.9]} 34. Bxf5 {[%clk 0:01:08.4]} 34... Qd8 {[%clk
0:00:28.4]} 35. Be6+ {[%clk 0:01:02.6]} 35... Kh8 {[%clk 0:00:28.8]} 36. Qh2+
{[%clk 0:00:59.1]} 36... Bh4 {[%clk 0:00:22.2]} 37. Bg3 {[%clk 0:00:53.8]} 37...
Qg5 {[%clk 0:00:22]} 38. Qxh4+ {[%clk 0:00:53.3]} 38... Qxh4 {[%clk 0:00:22.5]}
39. Bxh4 {[%clk 0:00:54]} 39... Kg7 {[%clk 0:00:22.4]} 40. Be7 {[%clk 0:00:49]}
40... Nf6 {[%clk 0:00:22.5]} 41. Bxd6 {[%clk 0:00:47.3]} 41... Nd3 {[%clk
0:00:23.4]} 42. Ne4 {[%clk 0:00:43.1]} 1-0

[Event "*** Titled Tuesday Blitz"]
[Site "Chess.com"]
[Date "2020.05.19"]
[Round "8"]
[White "zmeeed67"]
[Black "GM4life"]
[Result "1-0"]
[WhiteElo "2404"]
[BlackElo "2219"]
[TimeControl "180+1"]
[EndTime "13:36:07 PDT"]
[Termination "zmeeed67 won by resignation"]

1. d4 {[%clk 0:03:00.9]} 1... Nf6 {[%clk 0:02:59.6]} 2. c4 {[%clk 0:02:58.7]}
2... e6 {[%clk 0:02:59.8]} 3. Nc3 {[%clk 0:02:57.7]} 3... Bb4 {[%clk 0:03:00.2]}
4. f3 {[%clk 0:02:55.2]} 4... c5 {[%clk 0:02:59.6]} 5. d5 {[%clk 0:02:54.3]}
5... O-O {[%clk 0:03:00.2]} 6. e4 {[%clk 0:02:51.6]} 6... d6 {[%clk 0:03:00]} 7.
Bd3 {[%clk 0:02:50.3]} 7... Nbd7 {[%clk 0:02:58.2]} 8. Ne2 {[%clk 0:02:48.2]}
8... Ne5 {[%clk 0:02:55.9]} 9. O-O {[%clk 0:02:44.9]} 9... exd5 {[%clk
0:02:54.3]} 10. cxd5 {[%clk 0:02:41.8]} 10... Nxd3 {[%clk 0:02:50.9]} 11. Qxd3
{[%clk 0:02:41.2]} 11... Re8 {[%clk 0:02:49.7]} 12. Bg5 {[%clk 0:02:38.2]} 12...
h6 {[%clk 0:02:44.8]} 13. Bh4 {[%clk 0:02:38]} 13... g5 {[%clk 0:02:44.8]} 14.
Bf2 {[%clk 0:02:34.1]} 14... a6 {[%clk 0:02:45.1]} 15. a4 {[%clk 0:02:33.8]}
15... Qe7 {[%clk 0:02:26.1]} 16. h4 {[%clk 0:02:30.1]} 16... Kg7 {[%clk
0:02:25.3]} 17. hxg5 {[%clk 0:02:20.2]} 17... hxg5 {[%clk 0:02:23.8]} 18. Ng3
{[%clk 0:02:17.5]} 18... Qe5 {[%clk 0:02:06.3]} 19. Nd1 {[%clk 0:02:11.4]} 19...
c4 {[%clk 0:01:19.4]} 20. Qxc4 {[%clk 0:02:07.3]} 20... Bc5 {[%clk 0:01:19.8]}
21. Bxc5 {[%clk 0:01:49.8]} 21... dxc5 {[%clk 0:01:20]} 22. Kf2 {[%clk
0:01:47.2]} 22... Rh8 {[%clk 0:01:05.5]} 23. Qc3 {[%clk 0:01:27.9]} 23... Qf4
{[%clk 0:01:02.6]} 24. Ne3 {[%clk 0:01:18.5]} 24... g4 {[%clk 0:00:51.7]} 25.
Rh1 {[%clk 0:01:07.9]} 25... Bd7 {[%clk 0:00:33.5]} 26. e5 {[%clk 0:00:52.4]}
26... gxf3 {[%clk 0:00:08.2]} 27. exf6+ {[%clk 0:00:51.7]} 27... Kg6 {[%clk
0:00:08.7]} 28. gxf3 {[%clk 0:00:46.1]} 28... Rae8 {[%clk 0:00:07.7]} 29. Qd3+
{[%clk 0:00:35.1]} 29... Kxf6 {[%clk 0:00:07.6]} 30. Rxh8 {[%clk 0:00:32.7]}
30... Rxh8 {[%clk 0:00:06.7]} 31. Qc3+ {[%clk 0:00:32.4]} 31... Ke7 {[%clk
0:00:05.4]} 32. Qxh8 {[%clk 0:00:31.2]} 32... Qd4 {[%clk 0:00:06.1]} 33. Qxd4
{[%clk 0:00:28.2]} 33... Bf5 {[%clk 0:00:07]} 34. Nexf5+ {[%clk 0:00:29.1]}
34... Kd7 {[%clk 0:00:07.2]} 35. Qxc5 {[%clk 0:00:28.5]} 1-0

[Event "*** Titled Tuesday Blitz"]
[Site "Chess.com"]
[Date "2020.05.19"]
[Round "8"]
[White "MikeSailer"]
[Black "Konek-Gorbunok"]
[Result "1/2-1/2"]
[WhiteElo "2088"]
[BlackElo "2271"]
[TimeControl "180+1"]
[EndTime "13:36:11 PDT"]
[Termination "Game drawn by repetition"]

1. d4 {[%clk 0:03:00.7]} 1... c5 {[%clk 0:02:59.3]} 2. Bf4 {[%clk 0:03:01.4]}
2... cxd4 {[%clk 0:02:58.6]} 3. Qxd4 {[%clk 0:03:00.3]} 3... Nc6 {[%clk
0:02:57.3]} 4. Qd2 {[%clk 0:02:59]} 4... e5 {[%clk 0:02:54.7]} 5. Bg3 {[%clk
0:02:56.6]} 5... d5 {[%clk 0:02:53.5]} 6. Nf3 {[%clk 0:02:50.8]} 6... f6 {[%clk
0:02:46.1]} 7. e3 {[%clk 0:02:49.8]} 7... Be6 {[%clk 0:02:44.3]} 8. Be2 {[%clk
0:02:42.6]} 8... Bc5 {[%clk 0:02:14.3]} 9. O-O {[%clk 0:02:39]} 9... Nge7 {[%clk
0:02:13.5]} 10. a3 {[%clk 0:02:37.1]} 10... O-O {[%clk 0:02:07.8]} 11. b4 {[%clk
0:02:37.8]} 11... Bb6 {[%clk 0:02:07.8]} 12. Nc3 {[%clk 0:02:33.2]} 12... Rc8
{[%clk 0:02:06.4]} 13. Na4 {[%clk 0:02:33.1]} 13... Nf5 {[%clk 0:01:51.2]} 14.
Nxb6 {[%clk 0:02:30.4]} 14... Qxb6 {[%clk 0:01:50.1]} 15. Rfc1 {[%clk
0:02:19.5]} 15... Rfd8 {[%clk 0:01:47.5]} 16. Qe1 {[%clk 0:02:18.1]} 16... Nxg3
{[%clk 0:01:42.4]} 17. hxg3 {[%clk 0:02:17.5]} 17... Ne7 {[%clk 0:01:39.8]} 18.
Nd2 {[%clk 0:02:11.7]} 18... d4 {[%clk 0:01:34.4]} 19. exd4 {[%clk 0:02:04]}
19... Qxd4 {[%clk 0:01:33.4]} 20. Bd3 {[%clk 0:01:51.8]} 20... Qc3 {[%clk
0:01:12.8]} 21. Ne4 {[%clk 0:01:48.5]} 21... Qxe1+ {[%clk 0:01:08.5]} 22. Rxe1
{[%clk 0:01:49.1]} 22... b6 {[%clk 0:00:47.8]} 23. Red1 {[%clk 0:01:34.1]} 23...
Nd5 {[%clk 0:00:40.4]} 24. c4 {[%clk 0:01:25]} 24... Ne7 {[%clk 0:00:34]} 25. c5
{[%clk 0:01:23.5]} 25... Rd4 {[%clk 0:00:28.7]} 26. Nd6 {[%clk 0:01:08.5]} 26...
Rd8 {[%clk 0:00:24]} 27. Bb5 {[%clk 0:01:01.2]} 27... bxc5 {[%clk 0:00:19.2]}
28. bxc5 {[%clk 0:01:00.5]} 28... Rxd1+ {[%clk 0:00:18.2]} 29. Rxd1 {[%clk
0:01:00.4]} 29... Nf5 {[%clk 0:00:18.5]} 30. Kf1 {[%clk 0:00:36.7]} 30... Nxd6
{[%clk 0:00:18.6]} 31. cxd6 {[%clk 0:00:37.1]} 31... Kf7 {[%clk 0:00:17.7]} 32.
Ke2 {[%clk 0:00:36]} 32... Bd7 {[%clk 0:00:16.4]} 33. Bc4+ {[%clk 0:00:33.6]}
33... Be6 {[%clk 0:00:16.6]} 34. Bb5 {[%clk 0:00:34.1]} 34... Bd7 {[%clk
0:00:16.3]} 35. Bc4+ {[%clk 0:00:34.6]} 35... Be6 {[%clk 0:00:16.5]} 36. Bb5
{[%clk 0:00:35]} 1/2-1/2

[Event "*** Titled Tuesday Blitz"]
[Site "Chess.com"]
[Date "2020.05.19"]
[Round "8"]
[White "Kopytkin"]
[Black "Ashedu66"]
[Result "1-0"]
[WhiteElo "2323"]
[BlackElo "2127"]
[TimeControl "180+1"]
[EndTime "13:36:12 PDT"]
[Termination "Kopytkin won on time"]

1. e4 {[%clk 0:03:00.9]} 1... e5 {[%clk 0:02:58.6]} 2. Nf3 {[%clk 0:03:00.8]}
2... Nc6 {[%clk 0:02:58.7]} 3. d4 {[%clk 0:03:00.7]} 3... exd4 {[%clk
0:02:58.4]} 4. c3 {[%clk 0:03:01.2]} 4... dxc3 {[%clk 0:02:57]} 5. Nxc3 {[%clk
0:03:02.1]} 5... d6 {[%clk 0:02:56.2]} 6. Bc4 {[%clk 0:03:02.2]} 6... Nf6 {[%clk
0:02:56.3]} 7. Qb3 {[%clk 0:02:55.6]} 7... Qd7 {[%clk 0:02:55.2]} 8. Qc2 {[%clk
0:02:49.7]} 8... Be7 {[%clk 0:02:41.6]} 9. O-O {[%clk 0:02:49.4]} 9... O-O
{[%clk 0:02:40.7]} 10. Bf4 {[%clk 0:02:49.3]} 10... Nh5 {[%clk 0:02:11.4]} 11.
Be3 {[%clk 0:02:45.6]} 11... Qg4 {[%clk 0:01:43.2]} 12. Nd5 {[%clk 0:02:38.8]}
12... Bd8 {[%clk 0:01:33.2]} 13. h3 {[%clk 0:02:29.7]} 13... Qg6 {[%clk
0:01:27.3]} 14. Kh2 {[%clk 0:02:15.9]} 14... Ne5 {[%clk 0:01:21.4]} 15. Be2
{[%clk 0:02:12.1]} 15... c6 {[%clk 0:01:12.4]} 16. Nf4 {[%clk 0:02:09]} 16...
Nxf4 {[%clk 0:01:09.9]} 17. Bxf4 {[%clk 0:02:09.9]} 17... Bf6 {[%clk 0:01:05.5]}
18. Nd2 {[%clk 0:01:49]} 18... Be6 {[%clk 0:00:56.5]} 19. Rad1 {[%clk
0:01:45.3]} 19... Rad8 {[%clk 0:00:55.5]} 20. b3 {[%clk 0:01:44.5]} 20... Bg5
{[%clk 0:00:45.5]} 21. Bxg5 {[%clk 0:01:39.9]} 21... Qxg5 {[%clk 0:00:45.4]} 22.
f4 {[%clk 0:01:40.4]} 22... Qf6 {[%clk 0:00:33.3]} 23. fxe5 {[%clk 0:01:37.3]}
23... Qxe5+ {[%clk 0:00:33.5]} 24. Kh1 {[%clk 0:01:35.6]} 24... d5 {[%clk
0:00:33.1]} 25. exd5 {[%clk 0:01:29.3]} 25... Bxd5 {[%clk 0:00:27.2]} 26. Bf3
{[%clk 0:01:28.8]} 26... Rfe8 {[%clk 0:00:23.2]} 27. Bxd5 {[%clk 0:01:27.5]}
27... cxd5 {[%clk 0:00:22.9]} 28. Nf3 {[%clk 0:01:27.7]} 28... Qg3 {[%clk
0:00:21]} 29. Qf2 {[%clk 0:01:26.3]} 29... Qg6 {[%clk 0:00:18.7]} 30. Rfe1
{[%clk 0:01:22.8]} 30... h6 {[%clk 0:00:18]} 31. Qxa7 {[%clk 0:01:16.4]} 31...
Qg3 {[%clk 0:00:13.1]} 32. Qg1 {[%clk 0:01:09.4]} 32... Ra8 {[%clk 0:00:06.3]}
33. a4 {[%clk 0:01:08.3]} 33... Red8 {[%clk 0:00:04.7]} 34. Rd2 {[%clk 0:01:00]}
34... Rac8 {[%clk 0:00:04.4]} 35. Red1 {[%clk 0:00:59.9]} 35... Rc3 {[%clk
0:00:03.8]} 36. Nd4 {[%clk 0:00:50]} 36... Re8 {[%clk 0:00:02.1]} 37. Qf2 {[%clk
0:00:49.6]} 37... Qg6 {[%clk 0:00:01.1]} 38. b4 {[%clk 0:00:41.8]} 1-0

[Event "*** Titled Tuesday Blitz"]
[Site "Chess.com"]
[Date "2020.05.19"]
[Round "8"]
[White "poummba"]
[Black "vovachesss"]
[Result "0-1"]
[WhiteElo "2459"]
[BlackElo "2616"]
[TimeControl "180+1"]
[EndTime "13:36:13 PDT"]
[Termination "vovachesss won on time"]

1. e4 {[%clk 0:03:00.9]} 1... e5 {[%clk 0:02:58.4]} 2. Bc4 {[%clk 0:03:00.1]}
2... d5 {[%clk 0:02:55.7]} 3. Bxd5 {[%clk 0:02:58.4]} 3... Nf6 {[%clk
0:02:56.3]} 4. Nc3 {[%clk 0:02:56.2]} 4... Bb4 {[%clk 0:02:56.8]} 5. Nf3 {[%clk
0:02:52.8]} 5... c5 {[%clk 0:02:53.7]} 6. O-O {[%clk 0:02:49.1]} 6... O-O {[%clk
0:02:51.9]} 7. Nxe5 {[%clk 0:02:46.6]} 7... Nbd7 {[%clk 0:02:34.9]} 8. Nd3
{[%clk 0:02:46.6]} 8... Bxc3 {[%clk 0:02:31.5]} 9. dxc3 {[%clk 0:02:45.7]} 9...
Nxd5 {[%clk 0:02:31.9]} 10. exd5 {[%clk 0:02:45.4]} 10... c4 {[%clk 0:02:31.5]}
11. Nf4 {[%clk 0:02:40.3]} 11... Nf6 {[%clk 0:02:27.2]} 12. Be3 {[%clk 0:02:34]}
12... Bf5 {[%clk 0:02:25.8]} 13. Re1 {[%clk 0:02:00.2]} 13... Qd7 {[%clk
0:02:21.1]} 14. f3 {[%clk 0:01:36.1]} 14... Rfd8 {[%clk 0:02:17.3]} 15. Bf2
{[%clk 0:01:33.5]} 15... h6 {[%clk 0:02:03.7]} 16. Qd4 {[%clk 0:01:31.1]} 16...
b5 {[%clk 0:02:00.8]} 17. a4 {[%clk 0:01:28.1]} 17... Bxc2 {[%clk 0:01:57]} 18.
axb5 {[%clk 0:01:27.9]} 18... Qxb5 {[%clk 0:01:57.9]} 19. Rxa7 {[%clk
0:01:20.6]} 19... Rxa7 {[%clk 0:01:51.8]} 20. Qxa7 {[%clk 0:01:21.5]} 20... Nxd5
{[%clk 0:01:51.9]} 21. Nxd5 {[%clk 0:01:18.4]} 21... Rxd5 {[%clk 0:01:32.7]} 22.
Bd4 {[%clk 0:01:18.1]} 22... Rd7 {[%clk 0:01:05.8]} 23. Re8+ {[%clk 0:01:11.6]}
23... Kh7 {[%clk 0:01:04.4]} 24. Qa3 {[%clk 0:00:58.3]} 24... Qg5 {[%clk
0:00:57.7]} 25. Qf8 {[%clk 0:00:22.8]} 25... f6 {[%clk 0:00:52.2]} 26. h3 {[%clk
0:00:04.8]} 26... Bf5 {[%clk 0:00:45.1]} 27. Kh2 {[%clk 0:00:03.7]} 27... Qf4+
{[%clk 0:00:43.5]} 28. Kh1 {[%clk 0:00:03.8]} 28... Bxh3 {[%clk 0:00:28.7]} 29.
gxh3 {[%clk 0:00:03]} 29... Qxf3+ {[%clk 0:00:29.2]} 30. Kh2 {[%clk 0:00:03.4]}
30... Qf4+ {[%clk 0:00:29.8]} 31. Kg2 {[%clk 0:00:03.3]} 31... Rd5 {[%clk
0:00:29.9]} 32. Qg8+ {[%clk 0:00:01.4]} 32... Kg6 {[%clk 0:00:27.3]} 33. Qxd5
{[%clk 0:00:02.3]} 33... Qd2+ {[%clk 0:00:27.1]} 0-1

[Event "*** Titled Tuesday Blitz"]
[Site "Chess.com"]
[Date "2020.05.19"]
[Round "8"]
[White "cukin84"]
[Black "Omk124"]
[Result "1-0"]
[WhiteElo "2168"]
[BlackElo "2359"]
[TimeControl "180+1"]
[EndTime "13:36:13 PDT"]
[Termination "cukin84 won by resignation"]

1. e4 {[%clk 0:03:00.9]} 1... c5 {[%clk 0:02:01.4]} 2. Nc3 {[%clk 0:03:00]} 2...
a6 {[%clk 0:02:01.3]} 3. f4 {[%clk 0:02:59.5]} 3... b5 {[%clk 0:02:01.2]} 4. Nf3
{[%clk 0:02:59.7]} 4... Bb7 {[%clk 0:02:01.1]} 5. d3 {[%clk 0:03:00]} 5... e6
{[%clk 0:02:01]} 6. g3 {[%clk 0:02:59.5]} 6... Nf6 {[%clk 0:02:00.4]} 7. Bg2
{[%clk 0:02:59.6]} 7... Be7 {[%clk 0:02:00.6]} 8. O-O {[%clk 0:02:59.8]} 8...
O-O {[%clk 0:02:00.8]} 9. Qe1 {[%clk 0:03:00.1]} 9... b4 {[%clk 0:02:00.8]} 10.
Nd1 {[%clk 0:02:59.8]} 10... d5 {[%clk 0:02:00.9]} 11. e5 {[%clk 0:02:59.5]}
11... Nfd7 {[%clk 0:02:01.1]} 12. Ne3 {[%clk 0:02:53]} 12... Nc6 {[%clk
0:02:00.4]} 13. h3 {[%clk 0:02:44.3]} 13... a5 {[%clk 0:01:59.3]} 14. g4 {[%clk
0:02:43.1]} 14... Nb6 {[%clk 0:01:55.2]} 15. Qg3 {[%clk 0:02:41.4]} 15... d4
{[%clk 0:01:54]} 16. Nd1 {[%clk 0:02:35.6]} 16... c4 {[%clk 0:01:48.5]} 17. Nf2
{[%clk 0:02:33.8]} 17... c3 {[%clk 0:01:45.1]} 18. b3 {[%clk 0:02:31.1]} 18...
a4 {[%clk 0:01:44.6]} 19. bxa4 {[%clk 0:02:24.8]} 19... Rxa4 {[%clk 0:01:42.4]}
20. Ne4 {[%clk 0:02:24.1]} 20... Qa8 {[%clk 0:01:40.2]} 21. Rb1 {[%clk
0:02:20.1]} 21... Rxa2 {[%clk 0:01:39.1]} 22. Nfg5 {[%clk 0:02:12.4]} 22... Rxc2
{[%clk 0:01:34]} 23. f5 {[%clk 0:01:59.3]} 23... exf5 {[%clk 0:00:55.1]} 24.
gxf5 {[%clk 0:01:58.7]} 24... f6 {[%clk 0:00:52.6]} 25. Ne6 {[%clk 0:01:58.6]}
25... Rf7 {[%clk 0:00:52.4]} 26. exf6 {[%clk 0:01:54.7]} 26... Bf8 {[%clk
0:00:47.7]} 27. fxg7 {[%clk 0:01:52.7]} 27... Be7 {[%clk 0:00:44.9]} 28. f6
{[%clk 0:01:44]} 28... Bd8 {[%clk 0:00:41.1]} 29. Nd6 {[%clk 0:01:39.3]} 29...
Na5 {[%clk 0:00:33.7]} 30. Nxb7 {[%clk 0:01:37.2]} 30... Nxb7 {[%clk 0:00:32]}
31. Bh6 {[%clk 0:01:25.2]} 31... Qc8 {[%clk 0:00:27.6]} 32. Bxb7 {[%clk
0:01:19.5]} 32... Qxe6 {[%clk 0:00:26.9]} 33. Be4 {[%clk 0:01:13.4]} 33... Rxf6
{[%clk 0:00:21.4]} 34. Rxf6 {[%clk 0:01:07.7]} 34... Bxf6 {[%clk 0:00:21.3]} 35.
Re1 {[%clk 0:01:04.4]} 35... b3 {[%clk 0:00:18.5]} 36. Qb8+ {[%clk 0:01:01.9]}
36... Nc8 {[%clk 0:00:17.9]} 37. Bd5 {[%clk 0:00:59.4]} 37... Qxd5 {[%clk
0:00:17.3]} 38. Qxc8+ {[%clk 0:00:58.2]} 38... Bd8 {[%clk 0:00:17.1]} 39. Re8+
{[%clk 0:00:56]} 39... Kf7 {[%clk 0:00:17]} 40. g8=Q+ {[%clk 0:00:55.2]} 40...
Kf6 {[%clk 0:00:17.8]} 41. Rf8+ {[%clk 0:00:52.6]} 41... Ke5 {[%clk 0:00:17.5]}
42. Qf5+ {[%clk 0:00:50.8]} 42... Kd6 {[%clk 0:00:16.7]} 43. Qgxd5+ {[%clk
0:00:50.8]} 43... Kc7 {[%clk 0:00:16.7]} 44. Qfd7+ {[%clk 0:00:51]} 1-0

[Event "*** Titled Tuesday Blitz"]
[Site "Chess.com"]
[Date "2020.05.19"]
[Round "8"]
[White "Belka1989"]
[Black "Boudicca64"]
[Result "1-0"]
[WhiteElo "2127"]
[BlackElo "1995"]
[TimeControl "180+1"]
[EndTime "13:36:16 PDT"]
[Termination "Belka1989 won by resignation"]

1. d4 {[%clk 0:03:00.9]} 1... d5 {[%clk 0:02:58.3]} 2. Nf3 {[%clk 0:03:01.4]}
2... Nf6 {[%clk 0:02:56.9]} 3. Bf4 {[%clk 0:03:02]} 3... e6 {[%clk 0:02:56.2]}
4. e3 {[%clk 0:03:02.4]} 4... Be7 {[%clk 0:02:56.3]} 5. Bd3 {[%clk 0:03:00.1]}
5... O-O {[%clk 0:02:55.9]} 6. Nbd2 {[%clk 0:03:00.1]} 6... b6 {[%clk
0:02:55.6]} 7. Ne5 {[%clk 0:02:56.9]} 7... Bb7 {[%clk 0:02:54.9]} 8. Qf3 {[%clk
0:02:55.3]} 8... Nbd7 {[%clk 0:02:53.8]} 9. Qh3 {[%clk 0:02:44.4]} 9... c5
{[%clk 0:02:49.4]} 10. c3 {[%clk 0:02:44.9]} 10... g6 {[%clk 0:02:24]} 11. Bh6
{[%clk 0:02:19.2]} 11... Re8 {[%clk 0:02:22.7]} 12. Bb5 {[%clk 0:01:08.7]} 12...
a6 {[%clk 0:02:17.2]} 13. Bxd7 {[%clk 0:01:02.1]} 13... Nxd7 {[%clk 0:02:15.6]}
14. Ndf3 {[%clk 0:00:59.4]} 14... cxd4 {[%clk 0:02:07.2]} 15. exd4 {[%clk
0:00:57.4]} 15... Bf6 {[%clk 0:01:58.3]} 16. Nxd7 {[%clk 0:00:50.2]} 16... Qxd7
{[%clk 0:01:56.3]} 17. Bg5 {[%clk 0:00:44.1]} 17... Qe7 {[%clk 0:01:47.6]} 18.
Bxf6 {[%clk 0:00:43.1]} 18... Qxf6 {[%clk 0:01:46.5]} 19. Ne5 {[%clk 0:00:39.9]}
19... Qf5 {[%clk 0:01:37.7]} 20. Qxf5 {[%clk 0:00:30.9]} 20... exf5 {[%clk
0:01:35.8]} 21. Kd2 {[%clk 0:00:26.1]} 21... Re6 {[%clk 0:01:26.9]} 22. Rhe1
{[%clk 0:00:21.8]} 22... Rae8 {[%clk 0:01:25.4]} 23. Nd7 {[%clk 0:00:17.7]}
23... Kg7 {[%clk 0:01:11.8]} 24. Nxb6 {[%clk 0:00:10.5]} 24... a5 {[%clk
0:00:50.5]} 25. Nd7 {[%clk 0:00:09.6]} 25... Ba6 {[%clk 0:00:33.7]} 26. Rxe6
{[%clk 0:00:09.3]} 26... fxe6 {[%clk 0:00:31.7]} 27. Nc5 {[%clk 0:00:06.1]}
27... Bc8 {[%clk 0:00:29.8]} 28. Re1 {[%clk 0:00:06.3]} 28... Kf6 {[%clk
0:00:28.5]} 29. Nd3 {[%clk 0:00:06.9]} 29... Ba6 {[%clk 0:00:24.7]} 30. Ne5
{[%clk 0:00:06.7]} 30... Rb8 {[%clk 0:00:21]} 31. Nd7+ {[%clk 0:00:06.6]} 1-0

[Event "*** Titled Tuesday Blitz"]
[Site "Chess.com"]
[Date "2020.05.19"]
[Round "8"]
[White "TigranMukhutdinov"]
[Black "Goryachkina"]
[Result "1/2-1/2"]
[WhiteElo "2476"]
[BlackElo "2601"]
[TimeControl "180+1"]
[EndTime "13:36:17 PDT"]
[Termination "Game drawn by repetition"]

1. Nf3 {[%clk 0:03:00.9]} 1... d5 {[%clk 0:02:59.6]} 2. g3 {[%clk 0:03:00.9]}
2... c6 {[%clk 0:02:59.8]} 3. Bg2 {[%clk 0:03:01]} 3... Bg4 {[%clk 0:02:59.9]}
4. c4 {[%clk 0:02:59.7]} 4... e6 {[%clk 0:02:57.2]} 5. O-O {[%clk 0:02:57.9]}
5... Nf6 {[%clk 0:02:55.3]} 6. cxd5 {[%clk 0:02:54.3]} 6... Bxf3 {[%clk
0:02:54.4]} 7. Bxf3 {[%clk 0:02:53.4]} 7... cxd5 {[%clk 0:02:54.7]} 8. d3 {[%clk
0:02:52.8]} 8... Nc6 {[%clk 0:02:53.4]} 9. Qb3 {[%clk 0:02:52.8]} 9... Qd7
{[%clk 0:02:50.5]} 10. Nc3 {[%clk 0:02:49.9]} 10... Nd4 {[%clk 0:02:48.7]} 11.
Qa4 {[%clk 0:02:44.5]} 11... Nxf3+ {[%clk 0:02:47.9]} 12. exf3 {[%clk
0:02:45.4]} 12... Bd6 {[%clk 0:02:38.9]} 13. f4 {[%clk 0:02:41.8]} 13... Qxa4
{[%clk 0:02:34.5]} 14. Nxa4 {[%clk 0:02:39.9]} 14... O-O {[%clk 0:02:31.3]} 15.
Be3 {[%clk 0:02:38]} 15... Rfc8 {[%clk 0:02:17.7]} 16. Rac1 {[%clk 0:02:33.8]}
16... b6 {[%clk 0:02:02]} 17. Rxc8+ {[%clk 0:02:30.3]} 17... Rxc8 {[%clk
0:02:01.5]} 18. Rc1 {[%clk 0:02:31.2]} 18... Rxc1+ {[%clk 0:01:59.1]} 19. Bxc1
{[%clk 0:02:32.1]} 19... Kf8 {[%clk 0:01:55.5]} 20. Be3 {[%clk 0:02:30.1]} 20...
Ke7 {[%clk 0:01:55]} 21. Nc3 {[%clk 0:02:28.9]} 21... Kd7 {[%clk 0:01:54.2]} 22.
Kf1 {[%clk 0:02:22.1]} 22... h5 {[%clk 0:01:38.7]} 23. Bd4 {[%clk 0:02:19.8]}
23... Ne8 {[%clk 0:01:37.3]} 24. h4 {[%clk 0:02:17.6]} 24... g6 {[%clk 0:01:37]}
25. Ke2 {[%clk 0:02:15]} 25... Kc6 {[%clk 0:01:33.4]} 26. Kd2 {[%clk 0:02:12]}
26... Nc7 {[%clk 0:01:32.1]} 27. Ne2 {[%clk 0:02:10.4]} 27... Nb5 {[%clk
0:01:30.3]} 28. Be5 {[%clk 0:02:10.5]} 28... Bc5 {[%clk 0:01:28.7]} 29. a4
{[%clk 0:02:01.4]} 29... Nc7 {[%clk 0:01:23.7]} 30. Bd4 {[%clk 0:01:48.8]} 30...
Ne8 {[%clk 0:01:12.4]} 31. Kc3 {[%clk 0:01:47.4]} 31... a5 {[%clk 0:01:09.6]}
32. Ng1 {[%clk 0:01:35.5]} 32... Bxd4+ {[%clk 0:00:48.5]} 33. Kxd4 {[%clk
0:01:34.6]} 33... f6 {[%clk 0:00:47]} 34. Nf3 {[%clk 0:01:31.8]} 34... Nd6
{[%clk 0:00:47]} 35. Kc3 {[%clk 0:01:30.4]} 35... Nf5 {[%clk 0:00:44.6]} 36. b3
{[%clk 0:01:11.7]} 36... Kc5 {[%clk 0:00:41.8]} 37. d4+ {[%clk 0:01:11.8]} 37...
Kc6 {[%clk 0:00:38.4]} 38. Kd3 {[%clk 0:01:11.3]} 38... Nh6 {[%clk 0:00:36.8]}
39. Nd2 {[%clk 0:01:08.3]} 39... Ng4 {[%clk 0:00:36]} 40. Ke2 {[%clk 0:00:57.2]}
40... Nh6 {[%clk 0:00:34.3]} 41. Nf1 {[%clk 0:00:52.6]} 41... Nf5 {[%clk
0:00:34]} 42. Kd3 {[%clk 0:00:52.5]} 42... b5 {[%clk 0:00:34]} 43. Ne3 {[%clk
0:00:51.7]} 43... Nxe3 {[%clk 0:00:18.2]} 44. fxe3 {[%clk 0:00:50.9]} 44... bxa4
{[%clk 0:00:16.8]} 45. bxa4 {[%clk 0:00:50.8]} 45... f5 {[%clk 0:00:17.1]} 46.
Kc3 {[%clk 0:00:50.4]} 46... Kd6 {[%clk 0:00:16.8]} 47. Kd3 {[%clk 0:00:50.7]}
47... Kc6 {[%clk 0:00:17.2]} 48. Kc3 {[%clk 0:00:50.9]} 48... Kd6 {[%clk
0:00:17.7]} 49. Kd3 {[%clk 0:00:51.1]} 49... Kc6 {[%clk 0:00:18.2]} 1/2-1/2